bitfinex/quotes_BTCUSD_20250917
["timestamp","ask_amount","ask_price","bid_price","bid_amount"]
[1758142693352,1.11674442,115680.0,115670.0,0.0011]
[1758142695190,1.12276057,115680.0,115670.0,0.0011]
[1758142697431,0.29351655,115680.0,115670.0,0.0011]
[1758142697627,1.12276057,115680.0,115670.0,0.0011]
[1758142698057,1.09352057,115680.0,115670.0,0.19129623]
[1758142698261,1.09846057,115680.0,115670.0,0.21043736]
[1758142698435,0.95460856,115680.0,115670.0,0.21043736]
[1758142699148,0.53998655,115680.0,115670.0,0.21043736]
[1758142699357,1.36923057,115680.0,115670.0,0.21043736]
[1758142699725,1.37218057,115680.0,115670.0,0.21043736]
[1758142700104,1.39648057,115680.0,115670.0,0.21043736]
[1758142700513,1.36919057,115680.0,115670.0,0.21043736]
[1758142701202,1.37214057,115680.0,115670.0,0.21043736]
[1758142701383,1.39644057,115680.0,115670.0,0.21043736]
[1758142704451,0.56719655,115680.0,115670.0,0.21043736]
[1758142704653,1.39644057,115680.0,115670.0,0.21043736]
[1758142705700,1.37214057,115680.0,115670.0,0.21043736]
[1758142706335,1.39644057,115680.0,115670.0,0.21043736]
[1758142706748,1.22354984,115680.0,115670.0,0.21043736]
[1758142706965,1.39644057,115680.0,115670.0,0.21043736]
[1758142709246,0.37000582,115680.0,115670.0,0.21043736]
[1758142709458,0.50600783,115680.0,115670.0,0.21043736]
[1758142709666,0.77920783,115680.0,115670.0,0.24058926]
[1758142710722,0.50600783,115680.0,115670.0,0.24058926]
[1758142710936,0.36458582,115680.0,115670.0,0.24058926]
[1758142711118,0.77920783,115680.0,115670.0,0.24058926]
[1758142711359,0.77319168,115680.0,115670.0,0.24058926]
[1758142711569,0.68792201,115680.0,115670.0,0.24058926]
[1758142715929,0.2733,115680.0,115670.0,0.24058926]
[1758142716173,0.68792201,115680.0,115670.0,0.24058926]
[1758142716634,0.68780201,115680.0,115670.0,0.24058926]
[1758142716868,0.0001,115680.0,115670.0,0.24058926]
[1758142717108,0.0001,115680.0,115670.0,0.65521127]
[1758142717369,0.0001,115680.0,115670.0,0.92825127]
[1758142727108,0.0001,115680.0,115670.0,0.51362926]
[1758142727312,0.0001,115680.0,115670.0,0.92825127]
[1758142728663,0.0001,115680.0,115670.0,0.51362926]
[1758142728893,0.0001,115680.0,115670.0,0.92825127]
[1758142729807,0.0001,115680.0,115670.0,0.51362926]
[1758142730982,0.91958483,115680.0,115670.0,0.17400567]
[1758142731201,0.0001,115680.0,115670.0,0.17400567]
[1758142731416,0.0001,115680.0,115670.0,0.20415757]
[1758142742663,0.0001,115680.0,115670.0,0.61870015]
[1758142742867,0.0001,115680.0,115670.0,0.70396982]
[1758142743082,0.0001,115680.0,115670.0,0.78923949]
[1758142743496,0.0001,115680.0,115670.0,1.18923949]
[1758142743702,0.0001,115690.0,115680.0,0.17289073]
[1758142743915,0.0001,115690.0,115680.0,0.44581073]
[1758142744952,0.0001,115690.0,115680.0,0.44781073]
[1758142745159,0.0001,115690.0,115680.0,0.97787488]
[1758142745879,0.0001,115690.0,115680.0,1.04414256]
[1758142746105,0.0001,115690.0,115680.0,1.45892424]
[1758142746774,0.0001,115700.0,115690.0,0.17287578]
[1758142747460,0.0001,115700.0,115690.0,0.19884328]
[1758142747662,0.0001,115700.0,115690.0,0.23092764]
[1758142748057,0.00022157,115700.0,115690.0,0.23192764]
[1758142748438,0.00012157,115700.0,115690.0,0.23202764]
[1758142748846,0.00012157,115700.0,115690.0,0.20606014]
[1758142750238,0.00012157,115700.0,115690.0,0.23202763]
[1758142751753,0.00012157,115700.0,115690.0,0.64657021]
[1758142752791,0.00012157,115700.0,115690.0,0.23202763]
[1758142755553,0.00012157,115700.0,115690.0,0.64657021]
[1758142756161,0.00012157,115700.0,115690.0,0.23202763]
[1758142756538,0.00012157,115700.0,115690.0,0.26217953]
[1758142756760,0.00012157,115700.0,115690.0,0.67672211]
[1758142764727,0.00012157,115700.0,115690.0,1.07672211]
[1758142766531,1e-08,115700.0,115690.0,1.55199178]
[1758142766731,1e-08,115700.0,115690.0,1.96653436]
[1758142767008,1e-08,115700.0,115690.0,1.55199178]
[1758142767130,1e-08,115700.0,115690.0,1.60199178]
[1758142767600,1e-08,115700.0,115690.0,1.60099178]
[1758142768355,1e-08,115700.0,115690.0,1.60699178]
[1758142768616,1e-08,115700.0,115690.0,1.60099178]
[1758142768843,1e-08,115700.0,115690.0,1.60499178]
[1758142770592,1e-08,115700.0,115690.0,2.01953436]
[1758142770795,1e-08,115700.0,115690.0,1.60499178]
[1758142773059,1e-08,115700.0,115690.0,2.01953436]
[1758142774733,1e-08,115700.0,115690.0,2.29193436]
[1758142777173,1e-08,115700.0,115690.0,2.38295436]
[1758142779112,1e-08,115700.0,115690.0,2.11055436]
[1758142779337,1e-08,115700.0,115690.0,1.96841178]
[1758142779828,1e-08,115700.0,115690.0,2.38295436]
[1758142784730,1e-08,115700.0,115690.0,1.96841178]
[1758142786556,1e-08,115700.0,115690.0,1.69601178]
[1758142786738,1e-08,115700.0,115690.0,1.96837178]
[1758142787732,1e-08,115700.0,115690.0,1.96437178]
[1758142787938,1e-08,115700.0,115690.0,1.96937178]
[1758142788510,1e-08,115700.0,115690.0,1.87835178]
[1758142789994,1e-08,115700.0,115690.0,2.29219768]
[1758142790950,1e-08,115700.0,115690.0,2.01983768]
[1758142791162,1e-08,115700.0,115690.0,2.29215768]
[1758142794084,1e-08,115700.0,115690.0,2.38551768]
[1758142797374,1e-08,115700.0,115690.0,2.47658768]
[1758142797581,1e-08,115700.0,115690.0,2.38551768]
[1758142799088,1e-08,115700.0,115690.0,2.11319768]
[1758142799289,1e-08,115700.0,115690.0,2.38551768]
[1758142800052,1e-08,115700.0,115690.0,2.11319768]
[1758142800316,1e-08,115700.0,115690.0,2.33551768]
[1758142801250,1e-08,115700.0,115690.0,2.38551768]
[1758142804436,1e-08,115700.0,115690.0,2.11319768]
[1758142804645,1e-08,115700.0,115690.0,2.33547768]
[1758142804856,1e-08,115700.0,115690.0,2.38547768]
[1758142805304,1e-08,115700.0,115690.0,2.39423807]
[1758142805533,1e-08,115700.0,115690.0,2.34423807]
[1758142805738,1e-08,115700.0,115690.0,2.39423807]
[1758142807173,1e-08,115700.0,115690.0,2.34423807]
[1758142807391,1e-08,115700.0,115690.0,2.39423807]
[1758142807642,1e-08,115700.0,115690.0,2.34423807]
[1758142808079,1e-08,115700.0,115690.0,2.39423807]
[1758142811464,0.50521998,115740.0,115730.0,0.17281603]
[1758142811690,0.50767092,115740.0,115730.0,0.50565624]
[1758142812556,0.44127518,115740.0,115730.0,0.50665624]
[1758142812764,0.44127518,115740.0,115730.0,0.50675624]
[1758142813442,0.44445518,115740.0,115730.0,0.50675624]
[1758142814072,0.44445518,115740.0,115730.0,0.23447624]
[1758142814300,0.44445518,115740.0,115730.0,0.50671624]
[1758142814301,0.85864942,115740.0,115730.0,0.50671624]
[1758142814720,0.85874942,115740.0,115730.0,0.50671624]
[1758142815151,0.03036094,115740.0,115730.0,0.50671624]
[1758142815364,0.85874942,115740.0,115730.0,0.50671624]
[1758142816431,1.44574476,115740.0,115730.0,0.0011]
[1758142816643,1.53101443,115740.0,115730.0,0.001]
[1758142816868,1.53101443,115740.0,115730.0,0.20396793]
[1758142817070,1.11682019,115740.0,115730.0,0.20396793]
[1758142817277,1.53101443,115740.0,115730.0,0.20396793]
[1758142817480,1.53101443,115740.0,115730.0,0.0311519]
[1758142817703,1.11682019,115740.0,115730.0,0.0311519]
[1758142819278,1.11682019,115740.0,115730.0,0.20396793]
[1758142819747,1.11682019,115740.0,115730.0,0.20406793]
[1758142819949,1.12285094,115740.0,115730.0,0.20406793]
[1758142820413,1.12285094,115740.0,115730.0,0.20396793]
[1758142821182,1.11682019,115740.0,115730.0,0.0311519]
[1758142821385,1.11682019,115740.0,115730.0,0.20396793]
[1758142824912,1.11682019,115740.0,115730.0,0.20406793]
[1758142825136,1.11682019,115740.0,115730.0,0.0312519]
[1758142825758,1.11682019,115740.0,115730.0,0.20406793]
[1758142826152,1.53101443,115740.0,115730.0,0.0011]
[1758142826409,1.11682019,115740.0,115730.0,0.17381603]
[1758142826593,1.14278279,115740.0,115730.0,0.17381603]
[1758142826816,1.14278279,115740.0,115730.0,0.17281603]
[1758142827657,1.14881275,115740.0,115730.0,0.17281603]
[1758142827871,1.14881275,115740.0,115720.0,0.44517097]
[1758142828081,1.02901451,115730.0,115720.0,0.17293097]
[1758142828302,1.11626418,115730.0,115720.0,0.20298287]
[1758142828731,1.1423283,115730.0,115720.0,0.20298287]
[1758142829436,1.1423283,115730.0,115720.0,0.20398287]
[1758142829910,1.4145283,115730.0,115720.0,0.20398287]
[1758142831259,1.4145283,115730.0,115720.0,0.001]
[1758142832157,0.17283097,115720.0,115710.0,0.48391164]
[1758142832387,0.17283097,115720.0,115710.0,0.55347577]
[1758142832388,1.00319945,115720.0,115710.0,0.55347577]
[1758142832576,1.03100945,115720.0,115710.0,0.28127577]
[1758142832746,1.03110945,115720.0,115710.0,0.28127577]
[1758142832959,0.85827848,115720.0,115710.0,0.28127577]
[1758142833726,0.85827848,115720.0,115710.0,0.28227577]
[1758142834804,1.03110945,115720.0,115710.0,0.28227577]
[1758142835925,1.11637912,115720.0,115710.0,0.27366193]
[1758142836536,1.14234552,115720.0,115710.0,0.27366193]
[1758142838310,1.14234552,115720.0,115710.0,0.2040978]
[1758142838517,1.14234552,115720.0,115710.0,0.0312519]
[1758142838763,1.14234552,115720.0,115710.0,0.0011]
[1758142838975,1.14234552,115720.0,115710.0,0.001]
[1758142839802,0.1728459,115710.0,115700.0,0.20311089]
[1758142840015,0.94653981,115710.0,115700.0,0.28568022]
[1758142840215,0.97395981,115710.0,115700.0,0.28568022]
[1758142840578,0.99992868,115710.0,115700.0,0.28568022]
[1758142840922,1.00002868,115710.0,115700.0,0.28568022]
[1758142841732,1.00002868,115710.0,115700.0,0.0001]
[1758142841733,1.41422292,115710.0,115700.0,0.0001]
[1758142842357,1.41422292,115710.0,115700.0,0.0011]
[1758142842553,0.17286084,115700.0,115690.0,0.00461279]
[1758142842777,1.09832464,115700.0,115690.0,0.00461279]
[1758142842980,1.11606899,115700.0,115690.0,0.0001]
[1758142843184,1.14204087,115700.0,115690.0,0.0001]
[1758142843837,1.14204087,115700.0,115690.0,0.00024092]
[1758142844275,0.31365239,115700.0,115690.0,0.00024092]
[1758142844446,1.14204087,115700.0,115690.0,0.00024092]
[1758142845074,1.14204087,115700.0,115690.0,0.00124092]
[1758142845278,1.14204087,115700.0,115690.0,0.00024092]
[1758142845461,0.31365239,115700.0,115690.0,0.00024092]
[1758142845646,1.14204087,115700.0,115690.0,0.00024092]
[1758142847389,1.1480547,115700.0,115690.0,0.00024092]
[1758142849510,0.31966622,115700.0,115690.0,0.00024092]
[1758142849653,1.1480547,115700.0,115690.0,0.00024092]
[1758142849857,0.73425364,115700.0,115690.0,0.00024092]
[1758142851576,0.73425175,115700.0,115690.0,0.00024092]
[1758142853184,0.31966433,115700.0,115690.0,0.1731167]
[1758142853388,0.73425175,115700.0,115690.0,0.21711886]
[1758142853950,0.73425175,115700.0,115690.0,0.04424308]
[1758142854965,0.31966433,115700.0,115690.0,0.04424308]
[1758142855165,0.73425175,115700.0,115690.0,0.04424308]
[1758142856008,0.73425175,115700.0,115690.0,0.00024092]
[1758142856601,0.31966433,115700.0,115690.0,0.1731167]
[1758142856810,0.73425175,115700.0,115690.0,0.1731167]
[1758142857383,0.31966433,115700.0,115690.0,0.1731167]
[1758142858689,0.73425175,115700.0,115690.0,0.1731167]
[1758142858928,0.31966433,115700.0,115690.0,0.21711886]
[1758142859136,0.73425175,115700.0,115690.0,0.21711886]
[1758142859497,0.31966912,115700.0,115690.0,0.21711886]
[1758142859922,0.31966912,115700.0,115690.0,0.04424308]
[1758142860818,0.31966912,115700.0,115690.0,0.21711886]
[1758142861221,0.31966912,115700.0,115690.0,0.04424308]
[1758142861602,0.73425654,115700.0,115690.0,0.21711886]
[1758142862104,0.73425654,115700.0,115690.0,0.1731167]
[1758142862508,0.31966912,115700.0,115690.0,0.1731167]
[1758142862968,0.73425654,115700.0,115690.0,0.1731167]
[1758142864035,0.72823981,115700.0,115690.0,0.00024092]
[1758142864226,0.70226793,115700.0,115690.0,0.00024092]
[1758142864429,0.28768051,115700.0,115690.0,0.00024092]
[1758142864655,0.70226793,115700.0,115690.0,0.00024092]
[1758142865628,0.70226793,115700.0,115690.0,0.1731167]
[1758142866151,0.70829313,115700.0,115690.0,0.1731167]
[1758142866358,0.70829313,115700.0,115690.0,0.21711886]
[1758142866556,0.70226793,115700.0,115690.0,0.21711886]
[1758142867480,0.71834563,115700.0,115690.0,0.21711886]
[1758142868089,0.70226793,115700.0,115690.0,0.1731167]
[1758142868946,0.72438245,115700.0,115690.0,0.1731167]
[1758142869507,0.70226793,115700.0,115690.0,0.1731167]
[1758142869710,0.72438842,115700.0,115690.0,0.1731167]
[1758142871073,0.309801,115700.0,115690.0,0.1731167]
[1758142871277,0.72438842,115700.0,115690.0,0.1731167]
[1758142871700,0.309801,115700.0,115690.0,0.1731167]
[1758142871926,0.72438842,115700.0,115690.0,0.21711886]
[1758142872377,0.70226793,115700.0,115690.0,0.21711886]
[1758142872593,0.30982526,115700.0,115690.0,0.21711886]
[1758142873019,0.30982567,115700.0,115690.0,0.21711886]
[1758142873440,0.30983017,115700.0,115690.0,0.21711886]
[1758142874584,0.30983017,115700.0,115690.0,0.1731167]
[1758142875236,0.72441759,115700.0,115690.0,0.1731167]
[1758142876280,0.70830789,115700.0,115690.0,0.1731167]
[1758142876931,0.70830789,115700.0,115690.0,0.00024092]
[1758142877140,0.72441221,115700.0,115690.0,0.1731167]
[1758142877348,0.70830789,115700.0,115690.0,0.17763102]
[1758142877979,1.04830789,115700.0,115690.0,0.00475524]
[1758142878184,1.06441207,115700.0,115690.0,0.00465524]
[1758142878387,1.09038609,115700.0,115690.0,0.00465524]
[1758142879213,1.09138609,115700.0,115690.0,0.00465524]
[1758142886404,1.09138219,115700.0,115690.0,0.00465524]
[1758142888501,1.07527801,115700.0,115690.0,0.00014092]
[1758142890010,1.32295801,115700.0,115690.0,0.00014092]
[1758142890264,1.34733801,115700.0,115690.0,0.00014092]
[1758142892265,1.44073801,115700.0,115690.0,0.00014092]
[1758142895851,1.44073541,115700.0,115690.0,0.00014092]
[1758142898594,1.02614799,115700.0,115690.0,0.00014092]
[1758142898824,1.44073541,115700.0,115690.0,0.00014092]
[1758142901148,1.02614799,115700.0,115690.0,0.00014092]
[1758142901437,1.44073541,115700.0,115690.0,0.00014092]
[1758142903672,1.43974541,115700.0,115690.0,0.00014092]
[1758142906170,1.45585537,115700.0,115690.0,0.00014092]
[1758142906392,1.43974541,115700.0,115690.0,0.00465574]
[1758142906716,1.34634541,115700.0,115690.0,0.00465574]
[1758142907658,1.36245969,115700.0,115690.0,0.00465574]
[1758142909976,1.77707261,115700.0,115690.0,0.00465574]
[1758142910688,1.77681126,115700.0,115690.0,0.00465574]
[1758142915194,1.87021126,115700.0,115690.0,0.00465574]
[1758142918796,1.04101092,115700.0,115690.0,0.00465574]
[1758142919160,1.77681126,115700.0,115690.0,0.00465574]
[1758142920789,0.94761092,115700.0,115690.0,0.00465574]
[1758142921005,1.77681126,115700.0,115690.0,0.00465574]
[1758142922110,0.94761092,115700.0,115690.0,0.00465574]
[1758142922459,1.77681126,115700.0,115690.0,0.00465574]
[1758142923346,0.94761092,115700.0,115690.0,0.00465574]
[1758142923699,1.77681126,115700.0,115690.0,0.00465574]
[1758142923878,1.87021126,115700.0,115690.0,0.00465574]
[1758142925937,0.76894463,115700.0,115690.0,0.17753152]
[1758142926158,0.49960379,115700.0,115690.0,0.67059384]
[1758142926368,0.67246463,115700.0,115690.0,0.08311789]
[1758142926587,1.07095052,115700.0,115690.0,0.25599367]
[1758142927088,0.65635035,115700.0,115690.0,0.25599367]
[1758142927295,0.65635035,115700.0,115690.0,0.17949152]
[1758142927708,1.07095052,115700.0,115690.0,0.17949152]
[1758142927932,1.06995052,115700.0,115690.0,0.17949152]
[1758142928147,1.06995052,115700.0,115690.0,0.18049152]
[1758142928362,0.68333035,115700.0,115690.0,0.00565574]
[1758142928582,1.09793052,115700.0,115690.0,0.00565574]
[1758142929856,1.09792978,115700.0,115690.0,0.00565574]
[1758142930934,1.09188335,115700.0,115690.0,0.00565574]
[1758142931147,1.09792966,115700.0,115690.0,0.00565574]
[1758142931580,1.06908335,115700.0,115690.0,0.00565574]
[1758142931790,1.06595335,115700.0,115690.0,0.18049152]
[1758142932017,1.06595335,115700.0,115690.0,0.00761574]
[1758142932219,1.06908335,115700.0,115690.0,0.00565574]
[1758142932429,1.06908335,115700.0,115690.0,0.00465574]
[1758142932630,1.07512956,115700.0,115690.0,0.00465574]
[1758142932842,1.09792956,115700.0,115690.0,0.00465574]
[1758142934035,1.51252973,115700.0,115690.0,0.00465574]
[1758142935386,1.51252973,115700.0,115690.0,0.17753152]
[1758142935588,1.51252973,115700.0,115690.0,0.00465574]
[1758142936192,1.09792956,115700.0,115690.0,0.00465574]
[1758142937587,1.51252973,115700.0,115690.0,0.00465574]
[1758142940218,1.51252696,115700.0,115690.0,0.00465574]
[1758142940676,1.03944221,115700.0,115690.0,0.00465574]
[1758142940883,1.03944221,115700.0,115690.0,0.00014092]
[1758142941139,2.28324272,115700.0,115690.0,0.00014092]
[1758142941873,2.28424272,115700.0,115690.0,0.00014092]
[1758142942074,2.28324272,115700.0,115690.0,0.00014092]
[1758142943998,2.28623035,115700.0,115690.0,0.00014092]
[1758142944679,2.34950294,115700.0,115690.0,0.00014092]
[1758142945522,1.00210601,115670.0,115660.0,0.0001]
[1758142945677,1.36574274,115670.0,115660.0,0.0001]
[1758142945883,0.97912257,115670.0,115660.0,0.0001]
[1758142946136,1.07252257,115670.0,115660.0,0.0001]
[1758142946314,1.09850336,115670.0,115660.0,0.0001]
[1758142946485,1.09860336,115670.0,115660.0,0.0001]
[1758142947141,1.09860336,115670.0,115660.0,0.0011]
[1758142949392,1.09860336,115670.0,115660.0,0.00561583]
[1758142949623,1.09860336,115670.0,115660.0,0.00551583]
[1758142950684,0.65807319,115670.0,115660.0,0.00747583]
[1758142950884,1.07062336,115670.0,115660.0,0.00747583]
[1758142951249,1.07580336,115670.0,115660.0,0.00551583]
[1758142951449,1.09860336,115670.0,115660.0,0.00551583]
[1758142952501,1.09256336,115670.0,115660.0,0.00551583]
[1758142954172,1.09256336,115670.0,115660.0,0.001]
[1758142955736,1.09304336,115670.0,115660.0,0.001]
[1758142957719,1.50764353,115670.0,115660.0,0.001]
[1758142959759,1.09304336,115670.0,115660.0,0.001]
[1758142960652,1.50764353,115670.0,115660.0,0.001]
[1758142960782,1.51366456,115670.0,115660.0,0.001]
[1758142960978,0.68446422,115670.0,115660.0,0.001]
[1758142961183,1.51366456,115670.0,115660.0,0.001]
[1758142961410,1.85366456,115670.0,115660.0,0.001]
[1758142962900,1.43906439,115670.0,115660.0,0.001]
[1758142963100,1.02446422,115670.0,115660.0,0.001]
[1758142963340,1.85366456,115670.0,115660.0,0.001]
[1758142963931,1.02446422,115670.0,115660.0,0.001]
[1758142964152,1.85366456,115670.0,115660.0,0.001]
[1758142964346,0.17292062,115660.0,115650.0,0.0002]
[1758142964553,1.35961063,115660.0,115650.0,0.0002]
[1758142964747,1.36488063,115660.0,115650.0,0.0002]
[1758142965186,1.38816063,115660.0,115650.0,0.0002]
[1758142965528,1.42016744,115660.0,115650.0,0.0002]
[1758142967937,2.17476761,115660.0,115650.0,0.0002]
[1758142968156,2.19084142,115660.0,115650.0,0.0002]
[1758142968769,1.77624125,115660.0,115650.0,0.0002]
[1758142968975,1.77824125,115660.0,115650.0,0.0002]
[1758142969343,1.78697698,115660.0,115650.0,0.0002]
[1758142971201,1.78698596,115660.0,115650.0,0.0002]
[1758142971916,1.78772814,115660.0,115650.0,0.0002]
[1758142972135,1.37275688,115660.0,115650.0,0.0002]
[1758142973217,1.78772814,115660.0,115650.0,0.0002]
[1758142973642,1.77165433,115660.0,115650.0,0.0002]
[1758142973860,1.78773803,115660.0,115650.0,0.0002]
[1758142974287,1.78773681,115660.0,115650.0,0.0002]
[1758142978263,0.95779429,115660.0,115650.0,0.0002]
[1758142978469,1.37276555,115660.0,115650.0,0.0002]
[1758142979160,1.3727615,115660.0,115650.0,0.0002]
[1758142979770,1.78773276,115660.0,115650.0,0.0002]
[1758142982937,1.3727615,115660.0,115650.0,0.0002]
[1758142983978,1.36402577,115660.0,115650.0,0.0002]
[1758142984615,1.33804214,115660.0,115650.0,0.0002]
[1758142984836,1.34660679,115660.0,115650.0,0.0002]
[1758142985287,1.03941214,115660.0,115650.0,0.00235]
[1758142985504,1.31069214,115660.0,115650.0,0.00235]
[1758142986148,1.31273214,115660.0,115650.0,0.00235]
[1758142986361,1.34070214,115660.0,115650.0,0.00235]
[1758142986579,1.33870214,115660.0,115650.0,0.00235]
[1758142986796,1.33870214,115660.0,115650.0,0.0002]
[1758142987502,1.33970214,115660.0,115650.0,0.0002]
[1758142989415,1.33970423,115660.0,115650.0,0.0002]
[1758142990032,1.33970981,115660.0,115650.0,0.0002]
[1758142991309,0.92473855,115660.0,115650.0,0.0002]
[1758142991508,1.33970981,115660.0,115650.0,0.0002]
[1758142993215,0.92473855,115660.0,115650.0,0.0002]
[1758142993836,1.31481981,115660.0,115650.0,0.0002]
[1758142994038,1.33970981,115660.0,115650.0,0.0002]
[1758142994292,1.33970981,115660.0,115650.0,0.00235]
[1758142995648,1.33970981,115660.0,115650.0,0.0002]
[1758142996064,1.3397258,115660.0,115650.0,0.0002]
[1758142997395,1.33972868,115660.0,115650.0,0.0002]
[1758142998034,0.92475742,115660.0,115650.0,0.0002]
[1758142998235,1.33972868,115660.0,115650.0,0.0002]
[1758142998683,0.92475742,115660.0,115650.0,0.0002]
[1758142998894,1.33972868,115660.0,115650.0,0.0002]
[1758143002472,1.41762343,115660.0,115640.0,0.0002]
[1758143002737,2.19646272,115650.0,115640.0,1e-08]
[1758143002918,2.19612184,115650.0,115640.0,1e-08]
[1758143003177,2.19816184,115650.0,115640.0,1e-08]
[1758143003418,2.22613184,115650.0,115640.0,1e-08]
[1758143003653,2.23064948,115650.0,115640.0,1e-08]
[1758143004322,1.81777822,115650.0,115640.0,1e-08]
[1758143004543,1.48691254,115650.0,115640.0,1e-08]
[1758143004755,1.75983254,115650.0,115640.0,1e-08]
[1758143009969,0.51304031,115580.0,115570.0,0.0003]
[1758143010201,1.30030621,115580.0,115570.0,0.0003]
[1758143010435,1.32723621,115580.0,115570.0,0.0003]
[1758143010664,1.32723621,115580.0,115570.0,0.00245]
[1758143010892,1.33164621,115580.0,115570.0,0.00245]
[1758143011140,1.33472621,115580.0,115570.0,0.0002]
[1758143011322,1.35074351,115580.0,115570.0,0.00034136]
[1758143011761,1.34643351,115580.0,115570.0,0.00034136]
[1758143012179,1.41231701,115580.0,115570.0,0.00034136]
[1758143012782,1.49758668,115580.0,115570.0,0.00034136]
[1758143012989,0.09138431,115580.0,115570.0,0.59223791]
[1758143013201,0.09138431,115580.0,115570.0,0.67750758]
[1758143013426,0.26442462,115580.0,115570.0,0.00421136]
[1758143013654,0.09138431,115580.0,115570.0,0.17726665]
[1758143013854,0.09138431,115580.0,115570.0,0.18026665]
[1758143014610,0.26442462,115580.0,115570.0,0.18026665]
[1758143015954,0.09138431,115580.0,115570.0,0.18026665]
[1758143016077,0.26442462,115580.0,115570.0,0.18026665]
[1758143016632,0.26440296,115580.0,115570.0,0.18026665]
[1758143016840,0.09136265,115580.0,115570.0,0.18026665]
[1758143017023,0.26440296,115580.0,115570.0,0.18026665]
[1758143022098,0.26440296,115580.0,115570.0,0.00721136]
[1758143022325,0.26440296,115580.0,115570.0,0.18026665]
[1758143023214,0.26440296,115580.0,115570.0,0.26553632]
[1758143025325,0.28038838,115580.0,115570.0,0.26553632]
[1758143025650,0.26440453,115580.0,115570.0,0.26553632]
[1758143026061,0.28039401,115580.0,115570.0,0.26553632]
[1758143026268,0.28039401,115580.0,115570.0,0.09248103]
[1758143026482,0.28240401,115580.0,115570.0,0.00540136]
[1758143026713,0.72446527,115580.0,115570.0,0.00334136]
[1758143028161,1.06446527,115580.0,115570.0,0.00334136]
[1758143029037,1.06446527,115580.0,115570.0,0.00034136]
[1758143029383,1.06446527,115580.0,115570.0,0.00134136]
[1758143029799,0.92329401,115580.0,115570.0,0.00134136]
[1758143030011,1.33826527,115580.0,115570.0,0.00134136]
[1758143030463,0.64949401,115580.0,115570.0,0.00134136]
[1758143030671,1.06446527,115580.0,115570.0,0.00134136]
[1758143030891,0.64949401,115580.0,115570.0,0.00134136]
[1758143031111,1.33830527,115580.0,115570.0,0.00134136]
[1758143032331,0.17307026,115560.0,115550.0,0.18875812]
[1758143032504,0.55420171,115560.0,115550.0,0.1840443]
[1758143032947,0.55430171,115560.0,115550.0,0.05254282]
[1758143033126,0.96927297,115560.0,115550.0,0.00954906]
[1758143033491,0.96927297,115560.0,115550.0,0.01254906]
[1758143033867,0.97185513,115560.0,115550.0,0.01254906]
[1758143034068,0.96984513,115560.0,115550.0,0.01254906]
[1758143034499,0.55430171,115560.0,115550.0,0.1870443]
[1758143034701,0.96984513,115560.0,115550.0,0.1870443]
[1758143034907,0.96984513,115560.0,115550.0,0.1856343]
[1758143035800,0.10739145,115560.0,115550.0,0.26725041]
[1758143036045,0.38119145,115560.0,115550.0,0.68319383]
[1758143036466,0.10739145,115560.0,115550.0,0.26765041]
[1758143036665,0.10739145,115560.0,115550.0,0.1874443]
[1758143036875,0.02212178,115560.0,115550.0,0.60298772]
[1758143037088,0.02212178,115560.0,115550.0,0.87758772]
[1758143037494,0.02212178,115560.0,115550.0,1.29313114]
[1758143037699,0.02212178,115560.0,115550.0,1.31913044]
[1758143037913,0.02212178,115560.0,115550.0,1.40440011]
[1758143038545,0.02212178,115560.0,115550.0,0.98885669]
[1758143039379,0.02212178,115560.0,115550.0,1.43465201]
[1758143040224,0.02212178,115560.0,115550.0,0.32896517]
[1758143040432,0.02212178,115560.0,115550.0,0.74450859]
[1758143040644,0.02212178,115560.0,115550.0,1.01966859]
[1758143040851,0.02212178,115560.0,115550.0,0.60420517]
[1758143041059,0.02212178,115560.0,115550.0,0.57409327]
[1758143041267,0.02212178,115560.0,115550.0,1.38963669]
[1758143041905,0.02216262,115560.0,115550.0,1.38959669]
[1758143042105,0.02216262,115560.0,115550.0,1.11435669]
[1758143044674,0.02216262,115560.0,115550.0,1.08835739]
[1758143050238,0.02216262,115560.0,115550.0,1.08840716]
[1758143053149,0.00609455,115560.0,115550.0,1.08840716]
[1758143054006,0.0001,115560.0,115550.0,1.08840716]
[1758143054417,0.00612644,115560.0,115550.0,1.08840716]
[1758143054627,1.44380894,115560.0,115550.0,0.01063883]
[1758143054834,1.80636894,115560.0,115550.0,0.01053883]
[1758143055105,1.38479908,115560.0,115550.0,0.01053883]
[1758143055313,1.82243791,115560.0,115550.0,0.01053883]
[1758143055525,1.75422218,115560.0,115550.0,0.01053883]
[1758143055727,0.87523993,115560.0,115550.0,0.01253883]
[1758143055936,1.29078335,115560.0,115550.0,0.00953883]
[1758143056162,1.3068524,115560.0,115550.0,0.00953883]
[1758143056374,1.28886335,115560.0,115550.0,0.01153883]
[1758143056916,1.304932,115560.0,115550.0,0.01153883]
[1758143057119,1.28886335,115560.0,115550.0,0.18462407]
[1758143057372,1.28886335,115560.0,115550.0,0.01153883]
[1758143057577,1.31095734,115560.0,115550.0,0.01153883]
[1758143058448,1.31094926,115560.0,115550.0,0.18462407]
[1758143058673,1.31302926,115560.0,115550.0,0.18462407]
[1758143058886,1.31302926,115560.0,115550.0,0.01153883]
[1758143059330,1.72857268,115560.0,115550.0,0.18462407]
[1758143060835,1.72649268,115560.0,115550.0,0.18462407]
[1758143061520,1.31094926,115560.0,115550.0,0.18462407]
[1758143062166,1.29488898,115560.0,115550.0,0.18462407]
[1758143062850,1.7383124,115560.0,115550.0,0.00953883]
[1758143063805,1.7383124,115560.0,115550.0,0.18262407]
[1758143064934,1.7350724,115560.0,115550.0,0.18462407]
[1758143065163,1.73228677,115560.0,115550.0,0.00953883]
[1758143066051,1.70972677,115560.0,115550.0,0.00953883]
[1758143066474,1.73228677,115560.0,115550.0,0.00953883]
[1758143066739,1.73228677,115560.0,115550.0,0.01153883]
[1758143066947,1.73228677,115560.0,115550.0,0.00953883]
[1758143067517,1.72904677,115560.0,115550.0,0.18462407]
[1758143067956,1.73228677,115560.0,115550.0,0.18462407]
[1758143068088,1.70972677,115560.0,115550.0,0.18462407]
[1758143068294,1.70440677,115560.0,115550.0,0.18462407]
[1758143069134,1.70648677,115560.0,115550.0,0.18462407]
[1758143070282,1.72904677,115560.0,115550.0,0.18462407]
[1758143070496,1.31142335,115560.0,115550.0,0.18462407]
[1758143070676,1.31350335,115560.0,115550.0,0.18462407]
[1758143071080,1.31674335,115560.0,115550.0,0.18462407]
[1758143071285,1.31350335,115560.0,115550.0,0.18462407]
[1758143071700,1.31674335,115560.0,115550.0,0.18462407]
[1758143072123,1.31674335,115560.0,115550.0,0.01153883]
[1758143072746,1.31674335,115560.0,115550.0,0.00953883]
[1758143073647,1.73228677,115560.0,115550.0,0.00953883]
[1758143074401,0.90119993,115560.0,115550.0,0.00953883]
[1758143074615,1.73228677,115560.0,115550.0,0.00953883]
[1758143076653,1.73228677,115560.0,115550.0,0.00501994]